Supplier Name,Service Area Category,Trans date,Unique Invoice Reference,Expenditure Description,Posted Amount
Leicestershire Fire & Rescue Service (Bacs),Operational Responses,43986,9092492,Admin Pay,11281.4
Leicestershire Fire & Rescue Service (Bacs),Operational Responses,43986,9092492,Admin Pay,18551.94
Reflect Recruitment Group Limited,Management & Support Services,44103,9092434,Admin Agency Staff,677.47
Express Recruitment Ltd,Management & Support Services,44104,9092444,Admin Agency Staff,603.1
Hays Specialist Recruitment Limited,Management & Support Services,44095,9092477,Admin Agency Staff,565.15
Reflect Recruitment Group Limited,Management & Support Services,44110,9092500,Admin Agency Staff,677.47
Hays Specialist Recruitment Limited,Management & Support Services,44117,9092573,Admin Agency Staff,557.61
Hays Specialist Recruitment Limited,Management & Support Services,44112,9092594,Admin Agency Staff,210.99
Nottinghamshire Healthcare NHS Trust,Management & Support Services,44102,9092619,Admin Agency Staff,3710.59
Hays Specialist Recruitment Limited,Management & Support Services,44125,9092685,Admin Agency Staff,557.61
Hays Specialist Recruitment Limited,Management & Support Services,44130,9092715,Admin Agency Staff,557.61
Reflect Recruitment Group Limited,Management & Support Services,44123,9092726,Admin Agency Staff,677.47
Express Recruitment Ltd,Management & Support Services,44125,9092727,Admin Agency Staff,603.1
Nottinghamshire Healthcare NHS Trust,Management & Support Services,44127,9092746,Admin Agency Staff,3662.16
Reflect Recruitment Group Limited,Management & Support Services,44131,9092750,Admin Agency Staff,677.47
Express Recruitment Ltd,Management & Support Services,44129,9092751,Admin Agency Staff,603.1
ASK Europe,Management & Support Services,44104,9092399,Training,530.68
ASK Europe,Management & Support Services,44104,9092399,Training,11852.5
K Lamb Associates Limited,Management & Support Services,44105,9092421,Training,4050
Respiratory Protective Assessment Limited,Management & Support Services,44090,9092429,Training,850
Fire Doors Complete Limited,Management & Support Services,44078,9092432,Training,1870
Performance Monitoring Systems Ltd,Management & Support Services,44106,9092437,Training,650
Nuffield Sailing Centre,Management & Support Services,44106,9092441,Training,30
Nuffield Sailing Centre,Management & Support Services,44092,9092443,Training,30
Nottinghamshire Fire Safety Limited,Management & Support Services,44104,9092473,Training,425
Midland HR,Management & Support Services,44104,9092532,Training,1516
Shelagh Roberts,Management & Support Services,44074,9092543,Training,260
Pro Fire Safety & Training Limited,Management & Support Services,44117,9092581,Training,2350
Actorshop Limited,Management & Support Services,44103,9092620,Training,1200
Pro Fire Safety & Training Limited,Management & Support Services,44117,9092632,Training,5100
College of Policing,Management & Support Services,44118,9092637,Training,1592.5
Serco Limited,Management & Support Services,44124,9092643,Training,955
BRE Global Limited,"Statutory Inspection, Certification & Enforcement",44077,9092701,Training,350
Actorshop Limited,Management & Support Services,44126,9092714,Training,600
Actorshop Limited,Management & Support Services,44132,9092738,Training,600
R3 Safety & Rescue Limited,Management & Support Services,44132,9092745,Training,794.17
R3 Safety & Rescue Limited,Management & Support Services,44132,9092745,Training,3176.68
Devon & Somerset Fire & Rescue Service,Management & Support Services,44112,9092664,Training,-280
Flat Fee Recruiter Limited,Management & Support Services,44113,9092671,Recruitment Advertising,229
Flat Fee Recruiter Limited,Management & Support Services,44103,9092673,Recruitment Advertising,458
Flat Fee Recruiter Limited,Management & Support Services,44118,9092676,Recruitment Advertising,229
Simplyhealth,Management & Support Services,44089,9092672,Employee Benefits Schemes,4271.22
NCC Pension Fund,Management & Support Services,44035,9092553,Gratuities,92.04
NCC Pension Fund,Management & Support Services,44119,9092665,Gratuities,92.13
NCC Pension Fund,Management & Support Services,44035,9092553,Annual Pensions - Non Uniforms,5592.62
NCC Pension Fund,Management & Support Services,44119,9092665,Annual Pensions - Non Uniforms,5597.82
Amptron Electrical Services,Management & Support Services,44062,9092529,Buildings Repairs and Maintenance - Reactive,1567.31
Promotional Displays & Signs Company,Operational Responses,44104,9092693,Buildings Repairs and Maintenance - Reactive,673
Apollo Signs & Engraving,Operational Responses,44112,9092694,Buildings Repairs and Maintenance - Reactive,266
Amptron Electrical Services,Operational Responses,44119,9092695,Buildings Repairs and Maintenance - Reactive,99.09
Amptron Electrical Services,Management & Support Services,44119,9092695,Buildings Repairs and Maintenance - Reactive,195.25
Amptron Electrical Services,Operational Responses,44120,9092696,Buildings Repairs and Maintenance - Reactive,1688.38
Amptron Electrical Services,Operational Responses,44120,9092697,Buildings Repairs and Maintenance - Reactive,108.71
Amptron Electrical Services,Operational Responses,44120,9092697,Buildings Repairs and Maintenance - Reactive,359.86
Amptron Electrical Services,Operational Responses,44120,9092697,Buildings Repairs and Maintenance - Reactive,36.47
Amptron Electrical Services,Operational Responses,44120,9092697,Buildings Repairs and Maintenance - Reactive,93.5
Amptron Electrical Services,Operational Responses,44120,9092697,Buildings Repairs and Maintenance - Reactive,356.17
Amptron Electrical Services,Operational Responses,44120,9092697,Buildings Repairs and Maintenance - Reactive,286
Amptron Electrical Services,Operational Responses,44120,9092697,Buildings Repairs and Maintenance - Reactive,256.3
Amptron Electrical Services,Operational Responses,44120,9092697,Buildings Repairs and Maintenance - Reactive,129.91
Amptron Electrical Services,Operational Responses,44120,9092697,Buildings Repairs and Maintenance - Reactive,316.28
Amptron Electrical Services,Operational Responses,44120,9092697,Buildings Repairs and Maintenance - Reactive,579.4
Amptron Electrical Services,Management & Support Services,44120,9092697,Buildings Repairs and Maintenance - Reactive,627.07
Amptron Electrical Services,Operational Responses,44120,9092700,Buildings Repairs and Maintenance - Reactive,180.88
Amptron Electrical Services,Operational Responses,44120,9092700,Buildings Repairs and Maintenance - Reactive,114.73
Amptron Electrical Services,Operational Responses,44120,9092700,Buildings Repairs and Maintenance - Reactive,107.24
Amptron Electrical Services,Management & Support Services,44120,9092700,Buildings Repairs and Maintenance - Reactive,158.97
Amptron Electrical Services,Operational Responses,44119,9092705,Buildings Repairs and Maintenance - Reactive,709.19
Amptron Electrical Services,Operational Responses,44119,9092705,Buildings Repairs and Maintenance - Reactive,172
Amptron Electrical Services,Operational Responses,44119,9092705,Buildings Repairs and Maintenance - Reactive,416.83
Amptron Electrical Services,Operational Responses,44119,9092705,Buildings Repairs and Maintenance - Reactive,369.8
GES (Leicester) Limited,Operational Responses,44096,9092433,Building Maintenance - Planned,50
GES (Leicester) Limited,Operational Responses,44096,9092433,Building Maintenance - Planned,50
GES (Leicester) Limited,Operational Responses,44096,9092433,Building Maintenance - Planned,50
GES (Leicester) Limited,Operational Responses,44096,9092433,Building Maintenance - Planned,50
GES (Leicester) Limited,Operational Responses,44096,9092433,Building Maintenance - Planned,50
GES (Leicester) Limited,Operational Responses,44096,9092433,Building Maintenance - Planned,50
GES (Leicester) Limited,Operational Responses,44096,9092433,Building Maintenance - Planned,50
GES (Leicester) Limited,Operational Responses,44096,9092433,Building Maintenance - Planned,50
GES (Leicester) Limited,Operational Responses,44096,9092433,Building Maintenance - Planned,50
GES (Leicester) Limited,Operational Responses,44096,9092433,Building Maintenance - Planned,50
GES (Leicester) Limited,Operational Responses,44096,9092433,Building Maintenance - Planned,50
GES (Leicester) Limited,Operational Responses,44096,9092433,Building Maintenance - Planned,50
GES (Leicester) Limited,Operational Responses,44096,9092433,Building Maintenance - Planned,50
GES (Leicester) Limited,Operational Responses,44096,9092433,Building Maintenance - Planned,50
GES (Leicester) Limited,Operational Responses,44096,9092433,Building Maintenance - Planned,50
GES (Leicester) Limited,Operational Responses,44096,9092433,Building Maintenance - Planned,50
GES (Leicester) Limited,Operational Responses,44096,9092433,Building Maintenance - Planned,50
GES (Leicester) Limited,Operational Responses,44096,9092433,Building Maintenance - Planned,50
GES (Leicester) Limited,Operational Responses,44096,9092433,Building Maintenance - Planned,50
GES (Leicester) Limited,Operational Responses,44096,9092433,Building Maintenance - Planned,50
GES (Leicester) Limited,Operational Responses,44096,9092433,Building Maintenance - Planned,50
GES (Leicester) Limited,Operational Responses,44096,9092433,Building Maintenance - Planned,50
GES (Leicester) Limited,Operational Responses,44096,9092433,Building Maintenance - Planned,50
GES (Leicester) Limited,Management & Support Services,44096,9092433,Building Maintenance - Planned,50
GES (Leicester) Limited,Management & Support Services,44096,9092433,Building Maintenance - Planned,50
BWT UK Limited,Operational Responses,44104,9092474,Building Maintenance - Planned,32.56
BWT UK Limited,Operational Responses,44104,9092474,Building Maintenance - Planned,16.28
BWT UK Limited,Operational Responses,44104,9092474,Building Maintenance - Planned,16.28
BWT UK Limited,Operational Responses,44104,9092474,Building Maintenance - Planned,16.28
BWT UK Limited,Operational Responses,44104,9092474,Building Maintenance - Planned,24.42
BWT UK Limited,Operational Responses,44104,9092474,Building Maintenance - Planned,8.14
BWT UK Limited,Operational Responses,44104,9092474,Building Maintenance - Planned,16.28
BWT UK Limited,Operational Responses,44104,9092474,Building Maintenance - Planned,8.14
BWT UK Limited,Operational Responses,44104,9092474,Building Maintenance - Planned,8.14
BWT UK Limited,Operational Responses,44104,9092474,Building Maintenance - Planned,24.42
BWT UK Limited,Operational Responses,44104,9092474,Building Maintenance - Planned,8.14
BWT UK Limited,Operational Responses,44104,9092474,Building Maintenance - Planned,8.14
BWT UK Limited,Operational Responses,44104,9092474,Building Maintenance - Planned,8.14
BWT UK Limited,Operational Responses,44104,9092474,Building Maintenance - Planned,16.28
BWT UK Limited,Operational Responses,44104,9092474,Building Maintenance - Planned,7.91
BWT UK Limited,Operational Responses,44104,9092474,Building Maintenance - Planned,16.28
BWT UK Limited,Operational Responses,44104,9092474,Building Maintenance - Planned,16.28
BWT UK Limited,Operational Responses,44104,9092474,Building Maintenance - Planned,8.14
BWT UK Limited,Operational Responses,44104,9092474,Building Maintenance - Planned,8.14
BWT UK Limited,Operational Responses,44104,9092474,Building Maintenance - Planned,7.91
BWT UK Limited,Operational Responses,44104,9092474,Building Maintenance - Planned,8.14
BWT UK Limited,Operational Responses,44104,9092474,Building Maintenance - Planned,32.56
BWT UK Limited,Management & Support Services,44104,9092474,Building Maintenance - Planned,73.26
Amptron Electrical Services,Operational Responses,44120,9092698,Building Maintenance - Planned,907.35
Amptron Electrical Services,Operational Responses,44120,9092698,Building Maintenance - Planned,449.13
Amptron Electrical Services,Operational Responses,44120,9092698,Building Maintenance - Planned,567.53
Amptron Electrical Services,Operational Responses,44120,9092698,Building Maintenance - Planned,365.06
Amptron Electrical Services,Operational Responses,44120,9092698,Building Maintenance - Planned,229.52
Amptron Electrical Services,Operational Responses,44120,9092698,Building Maintenance - Planned,596.63
Amptron Electrical Services,Operational Responses,44120,9092698,Building Maintenance - Planned,298.39
Amptron Electrical Services,Operational Responses,44120,9092698,Building Maintenance - Planned,229.52
Amptron Electrical Services,Operational Responses,44120,9092698,Building Maintenance - Planned,684.48
Amptron Electrical Services,Operational Responses,44120,9092698,Building Maintenance - Planned,345.99
Amptron Electrical Services,Operational Responses,44120,9092698,Building Maintenance - Planned,229.52
Amptron Electrical Services,Operational Responses,44120,9092698,Building Maintenance - Planned,264.71
Amptron Electrical Services,Operational Responses,44120,9092698,Building Maintenance - Planned,614.1
Amptron Electrical Services,Operational Responses,44120,9092698,Building Maintenance - Planned,211.05
Amptron Electrical Services,Operational Responses,44120,9092698,Building Maintenance - Planned,342.72
Amptron Electrical Services,Operational Responses,44120,9092698,Building Maintenance - Planned,492.09
Amptron Electrical Services,Operational Responses,44120,9092698,Building Maintenance - Planned,175.86
Amptron Electrical Services,Operational Responses,44120,9092698,Building Maintenance - Planned,272.5
Amptron Electrical Services,Operational Responses,44120,9092698,Building Maintenance - Planned,272.6
Amptron Electrical Services,Operational Responses,44120,9092698,Building Maintenance - Planned,710.27
Amptron Electrical Services,Operational Responses,44120,9092698,Building Maintenance - Planned,521.95
Amptron Electrical Services,Operational Responses,44120,9092698,Building Maintenance - Planned,175.86
Amptron Electrical Services,Operational Responses,44120,9092698,Building Maintenance - Planned,1066.13
Amptron Electrical Services,Management & Support Services,44120,9092698,Building Maintenance - Planned,583.91
Amptron Electrical Services,Management & Support Services,44120,9092698,Building Maintenance - Planned,707.3
British Gas Business,Operational Responses,44081,9092450,Electricity,1083.67
British Gas Business,Operational Responses,44081,9092450,Electricity,173.66
British Gas Business,Operational Responses,44081,9092450,Electricity,884.58
British Gas Business,Operational Responses,44081,9092450,Electricity,440.38
British Gas Business,Operational Responses,44081,9092450,Electricity,221.78
British Gas Business,Operational Responses,44081,9092450,Electricity,842.44
British Gas Business,Operational Responses,44081,9092450,Electricity,334.63
British Gas Business,Operational Responses,44081,9092450,Electricity,123.91
British Gas Business,Operational Responses,44081,9092450,Electricity,249.26
British Gas Business,Operational Responses,44081,9092450,Electricity,202.01
British Gas Business,Operational Responses,44081,9092450,Electricity,230.08
British Gas Business,Operational Responses,44081,9092450,Electricity,203.12
British Gas Business,Operational Responses,44081,9092450,Electricity,1127.99
British Gas Business,Operational Responses,44081,9092450,Electricity,752.93
British Gas Business,Operational Responses,44081,9092450,Electricity,315.31
British Gas Business,Operational Responses,44081,9092450,Electricity,581.3
British Gas Business,Operational Responses,44081,9092450,Electricity,320.03
British Gas Business,Operational Responses,44081,9092450,Electricity,839.54
British Gas Business,Operational Responses,44081,9092450,Electricity,184.09
British Gas Business,Management & Support Services,44081,9092450,Electricity,56.17
British Gas Business,Prevention & Education,44081,9092450,Electricity,282.18
British Gas Business,Operational Responses,44081,9092450,Electricity,-164.61
British Gas Business,Operational Responses,44081,9092450,Electricity,-134.86
British Gas Business,Operational Responses,44081,9092450,Electricity,-130.93
British Gas Business,Operational Responses,44081,9092450,Electricity,-128.15
British Gas Business,Operational Responses,44081,9092450,Electricity,34.42
British Gas Business,Operational Responses,44081,9092450,Electricity,49.57
British Gas Business,Operational Responses,44081,9092450,Electricity,72.58
British Gas Business,Operational Responses,44081,9092450,Electricity,81.9
British Gas Business,Operational Responses,44081,9092450,Electricity,114.54
Corona Energy,Operational Responses,44082,9092371,Gas,226.16
Corona Energy,Operational Responses,44082,9092376,Gas,290.56
Corona Energy,Management & Support Services,44082,9092381,Gas,273.11
Corona Energy,Operational Responses,44082,9092383,Gas,305.37
Corona Energy,Operational Responses,44082,9092386,Gas,250.31
Corona Energy,Operational Responses,44082,9092388,Gas,279.47
Corona Energy,Operational Responses,44082,9092389,Gas,286.6
Corona Energy,Operational Responses,44082,9092393,Gas,243.15
Corona Energy,Management & Support Services,44113,9092613,Gas,227.98
Enviroenergy Lrd,Operational Responses,44104,9092654,Gas,548.42
Corona Energy,Operational Responses,44084,9092362,Gas,-305.37
Corona Energy,Management & Support Services,44084,9092363,Gas,-273.11
Corona Energy,Operational Responses,44084,9092365,Gas,-243.15
Castle Water Limited,Operational Responses,44083,9092361,Water Rates,81.61
Castle Water Limited,Operational Responses,44106,9092482,Water Rates,171.29
Castle Water Limited,Operational Responses,44106,9092483,Water Rates,355.13
Castle Water Limited,Management & Support Services,44106,9092488,Water Rates,340.94
Castle Water Limited,Management & Support Services,44106,9092490,Water Rates,342.48
Castle Water Limited,Operational Responses,44106,9092491,Water Rates,10.41
Castle Water Limited,Operational Responses,44106,9092491,Water Rates,166.54
Castle Water Limited,Operational Responses,44109,9092595,Water Rates,55.22
Castle Water Limited,Operational Responses,44109,9092596,Water Rates,165.66
Castle Water Limited,Operational Responses,44106,9092604,Water Rates,168.21
Castle Water Limited,Operational Responses,44106,9092606,Water Rates,126.08
Castle Water Limited,Operational Responses,44083,9092361,Sewerage and Environmental,422.31
Castle Water Limited,Operational Responses,44106,9092482,Sewerage and Environmental,264.79
Castle Water Limited,Operational Responses,44106,9092483,Sewerage and Environmental,319.86
Castle Water Limited,Management & Support Services,44106,9092488,Sewerage and Environmental,219.58
Castle Water Limited,Management & Support Services,44106,9092490,Sewerage and Environmental,220.58
Castle Water Limited,Operational Responses,44106,9092491,Sewerage and Environmental,171.74
Castle Water Limited,Operational Responses,44109,9092595,Sewerage and Environmental,567.93
Castle Water Limited,Operational Responses,44109,9092596,Sewerage and Environmental,137.66
Castle Water Limited,Operational Responses,44106,9092604,Sewerage and Environmental,108.17
Castle Water Limited,Operational Responses,44106,9092606,Sewerage and Environmental,377.42
Veolia ES UK Limited,Management & Support Services,44074,9092583,Refuse / Trade Waste Collection,1474.87
Veolia ES UK Limited,Management & Support Services,44104,9092615,Refuse / Trade Waste Collection,1598.54
NCC Sundry Debtors,Operational Responses,44105,9092494,Grounds Maintenance,37.42
NCC Sundry Debtors,Operational Responses,44105,9092494,Grounds Maintenance,64.1
NCC Sundry Debtors,Operational Responses,44105,9092494,Grounds Maintenance,34.4
NCC Sundry Debtors,Operational Responses,44105,9092494,Grounds Maintenance,172.01
NCC Sundry Debtors,Operational Responses,44105,9092494,Grounds Maintenance,36.38
NCC Sundry Debtors,Operational Responses,44105,9092494,Grounds Maintenance,3.14
NCC Sundry Debtors,Operational Responses,44105,9092494,Grounds Maintenance,33.97
NCC Sundry Debtors,Operational Responses,44105,9092494,Grounds Maintenance,39.93
NCC Sundry Debtors,Operational Responses,44105,9092494,Grounds Maintenance,37.07
NCC Sundry Debtors,Operational Responses,44105,9092494,Grounds Maintenance,24.86
NCC Sundry Debtors,Operational Responses,44105,9092494,Grounds Maintenance,25.85
NCC Sundry Debtors,Operational Responses,44105,9092494,Grounds Maintenance,24.56
NCC Sundry Debtors,Operational Responses,44105,9092494,Grounds Maintenance,14.38
NCC Sundry Debtors,Operational Responses,44105,9092494,Grounds Maintenance,35.69
NCC Sundry Debtors,Operational Responses,44105,9092494,Grounds Maintenance,60.55
NCC Sundry Debtors,Operational Responses,44105,9092494,Grounds Maintenance,102.65
NCC Sundry Debtors,Operational Responses,44105,9092494,Grounds Maintenance,204.19
NCC Sundry Debtors,Operational Responses,44105,9092494,Grounds Maintenance,76.06
NCC Sundry Debtors,Operational Responses,44105,9092494,Grounds Maintenance,25.6
NCC Sundry Debtors,Operational Responses,44105,9092494,Grounds Maintenance,10.68
NCC Sundry Debtors,Operational Responses,44105,9092494,Grounds Maintenance,9.65
NCC Sundry Debtors,Operational Responses,44105,9092494,Grounds Maintenance,125.54
NCC Sundry Debtors,Operational Responses,44105,9092494,Grounds Maintenance,74.83
NCC Sundry Debtors,Management & Support Services,44105,9092494,Grounds Maintenance,148.12
NCC Sundry Debtors,Management & Support Services,44105,9092494,Grounds Maintenance,915.55
Irongate Group Ltd,Operational Responses,44084,9092396,Cleaning Materials,337.02
Irongate Group Ltd,Operational Responses,44084,9092422,Cleaning Materials,489.45
Irongate Group Ltd,Operational Responses,44113,9092634,Cleaning Materials,53.68
Irongate Group Ltd,Operational Responses,44113,9092634,Cleaning Materials,165.32
FlamePro Global  Limited,Management & Support Services,43927,9092652,Cleaning Materials,10
FlamePro Global  Limited,Management & Support Services,43927,9092652,Cleaning Materials,1900
Irongate Group Ltd,Management & Support Services,44125,9092718,Cleaning Materials,354.08
NCC Sundry Debtors,Management & Support Services,44105,9092481,Contract Cleaning,8875
NCC Sundry Debtors,Operational Responses,44105,9092496,Contract Cleaning,1357.89
NCC Sundry Debtors,Operational Responses,44105,9092514,Contract Cleaning,14.57
NCC Sundry Debtors,Operational Responses,44105,9092514,Contract Cleaning,10.93
NCC Sundry Debtors,Operational Responses,44105,9092514,Contract Cleaning,13.66
NCC Sundry Debtors,Operational Responses,44105,9092514,Contract Cleaning,14.57
NCC Sundry Debtors,Operational Responses,44105,9092514,Contract Cleaning,10.93
NCC Sundry Debtors,Operational Responses,44105,9092514,Contract Cleaning,10.93
NCC Sundry Debtors,Operational Responses,44105,9092514,Contract Cleaning,14.57
NCC Sundry Debtors,Operational Responses,44105,9092514,Contract Cleaning,10.93
NCC Sundry Debtors,Operational Responses,44105,9092514,Contract Cleaning,10.93
NCC Sundry Debtors,Operational Responses,44105,9092514,Contract Cleaning,10.93
NCC Sundry Debtors,Operational Responses,44105,9092514,Contract Cleaning,10.93
NCC Sundry Debtors,Operational Responses,44105,9092514,Contract Cleaning,10.93
NCC Sundry Debtors,Operational Responses,44105,9092514,Contract Cleaning,10.93
NCC Sundry Debtors,Operational Responses,44105,9092514,Contract Cleaning,14.57
NCC Sundry Debtors,Operational Responses,44105,9092514,Contract Cleaning,10.93
NCC Sundry Debtors,Operational Responses,44105,9092514,Contract Cleaning,14.57
NCC Sundry Debtors,Operational Responses,44105,9092514,Contract Cleaning,14.57
NCC Sundry Debtors,Operational Responses,44105,9092514,Contract Cleaning,10.93
NCC Sundry Debtors,Operational Responses,44105,9092514,Contract Cleaning,10.93
NCC Sundry Debtors,Operational Responses,44105,9092514,Contract Cleaning,14.57
NCC Sundry Debtors,Operational Responses,44105,9092514,Contract Cleaning,14.57
NCC Sundry Debtors,Operational Responses,44105,9092514,Contract Cleaning,10.93
NCC Sundry Debtors,Operational Responses,44105,9092514,Contract Cleaning,14.57
NCC Sundry Debtors,Management & Support Services,44105,9092514,Contract Cleaning,32.78
NCC Sundry Debtors,Management & Support Services,44105,9092514,Contract Cleaning,130.4
NCC Sundry Debtors,Operational Responses,44105,9092515,Contract Cleaning,1736.93
NCC Sundry Debtors,Operational Responses,44105,9092515,Contract Cleaning,124.08
NCC Sundry Debtors,Operational Responses,44105,9092515,Contract Cleaning,1963.88
NCC Sundry Debtors,Operational Responses,44105,9092515,Contract Cleaning,775.22
NCC Sundry Debtors,Operational Responses,44105,9092515,Contract Cleaning,495.98
NCC Sundry Debtors,Operational Responses,44105,9092515,Contract Cleaning,154.96
NCC Sundry Debtors,Operational Responses,44105,9092515,Contract Cleaning,930.26
NCC Sundry Debtors,Operational Responses,44105,9092515,Contract Cleaning,310.01
NCC Sundry Debtors,Operational Responses,44105,9092515,Contract Cleaning,248.05
NCC Sundry Debtors,Operational Responses,44105,9092515,Contract Cleaning,1116.31
NCC Sundry Debtors,Operational Responses,44105,9092515,Contract Cleaning,185.93
NCC Sundry Debtors,Operational Responses,44105,9092515,Contract Cleaning,279.04
NCC Sundry Debtors,Operational Responses,44105,9092515,Contract Cleaning,279.04
NCC Sundry Debtors,Operational Responses,44105,9092515,Contract Cleaning,775.22
NCC Sundry Debtors,Operational Responses,44105,9092515,Contract Cleaning,186.12
NCC Sundry Debtors,Operational Responses,44105,9092515,Contract Cleaning,1116.31
NCC Sundry Debtors,Operational Responses,44105,9092515,Contract Cleaning,1085.3
NCC Sundry Debtors,Operational Responses,44105,9092515,Contract Cleaning,465.01
NCC Sundry Debtors,Operational Responses,44105,9092515,Contract Cleaning,309.96
NCC Sundry Debtors,Operational Responses,44105,9092515,Contract Cleaning,697.69
NCC Sundry Debtors,Operational Responses,44105,9092515,Contract Cleaning,1705.92
NCC Sundry Debtors,Operational Responses,44105,9092515,Contract Cleaning,185.98
NCC Sundry Debtors,Operational Responses,44105,9092515,Contract Cleaning,3591.77
NCC Sundry Debtors,Management & Support Services,44105,9092515,Contract Cleaning,1674.91
NCC Sundry Debtors,Management & Support Services,44105,9092515,Contract Cleaning,3538.56
NCC Sundry Debtors,Operational Responses,44131,9092633,Contract Cleaning,468
NCC Sundry Debtors,Operational Responses,44131,9092633,Contract Cleaning,468
NCC Sundry Debtors,Operational Responses,44131,9092633,Contract Cleaning,468
NCC Sundry Debtors,Operational Responses,44131,9092633,Contract Cleaning,468
NCC Sundry Debtors,Operational Responses,44131,9092633,Contract Cleaning,468
NCC Sundry Debtors,Operational Responses,44131,9092633,Contract Cleaning,468
NCC Sundry Debtors,Operational Responses,44131,9092633,Contract Cleaning,468
NCC Sundry Debtors,Operational Responses,44131,9092633,Contract Cleaning,468
NCC Sundry Debtors,Operational Responses,44131,9092633,Contract Cleaning,468
NCC Sundry Debtors,Operational Responses,44131,9092633,Contract Cleaning,468
NCC Sundry Debtors,Operational Responses,44131,9092633,Contract Cleaning,468
NCC Sundry Debtors,Operational Responses,44131,9092633,Contract Cleaning,468
NCC Sundry Debtors,Management & Support Services,44129,9092733,Contract Cleaning,2432
NCC Sundry Debtors,Management & Support Services,44113,9092533,Contract Cleaning,-2853.75
NCC Sundry Debtors,Management & Support Services,44113,9092533,Contract Cleaning,-1901.25
NCC Sundry Debtors,Operational Responses,44105,9092513,Window Cleaning,18.21
NCC Sundry Debtors,Operational Responses,44105,9092513,Window Cleaning,10.93
NCC Sundry Debtors,Operational Responses,44105,9092513,Window Cleaning,21.86
NCC Sundry Debtors,Operational Responses,44105,9092513,Window Cleaning,10.93
NCC Sundry Debtors,Operational Responses,44105,9092513,Window Cleaning,10.93
NCC Sundry Debtors,Operational Responses,44105,9092513,Window Cleaning,9.11
NCC Sundry Debtors,Operational Responses,44105,9092513,Window Cleaning,10.93
NCC Sundry Debtors,Operational Responses,44105,9092513,Window Cleaning,10.93
NCC Sundry Debtors,Operational Responses,44105,9092513,Window Cleaning,10.93
NCC Sundry Debtors,Operational Responses,44105,9092513,Window Cleaning,14.57
NCC Sundry Debtors,Operational Responses,44105,9092513,Window Cleaning,9.11
NCC Sundry Debtors,Operational Responses,44105,9092513,Window Cleaning,9.11
NCC Sundry Debtors,Operational Responses,44105,9092513,Window Cleaning,10.93
NCC Sundry Debtors,Operational Responses,44105,9092513,Window Cleaning,10.93
NCC Sundry Debtors,Operational Responses,44105,9092513,Window Cleaning,10.93
NCC Sundry Debtors,Operational Responses,44105,9092513,Window Cleaning,12.75
NCC Sundry Debtors,Operational Responses,44105,9092513,Window Cleaning,16.39
NCC Sundry Debtors,Operational Responses,44105,9092513,Window Cleaning,10.93
NCC Sundry Debtors,Operational Responses,44105,9092513,Window Cleaning,10.93
NCC Sundry Debtors,Operational Responses,44105,9092513,Window Cleaning,10.93
NCC Sundry Debtors,Operational Responses,44105,9092513,Window Cleaning,14.57
NCC Sundry Debtors,Operational Responses,44105,9092513,Window Cleaning,10.93
NCC Sundry Debtors,Operational Responses,44105,9092513,Window Cleaning,36.42
NCC Sundry Debtors,Management & Support Services,44105,9092513,Window Cleaning,12.75
NCC Sundry Debtors,Management & Support Services,44105,9092513,Window Cleaning,47.35
VIA East Midlands Ltd,Management & Support Services,44097,9092418,Fleet Maintenance - Planned,11451.64
VIA East Midlands Ltd,Management & Support Services,44097,9092419,Fleet Maintenance - Planned,11189.19
Tangible Solutions Limited,Management & Support Services,44074,9092639,Fleet Maintenance - Planned,3947.5
Tangible Solutions Limited,Management & Support Services,44104,9092640,Fleet Maintenance - Planned,460
Woodway Engineering Limited,Management & Support Services,44111,9092518,Fleet Modification,3356.72
VIA East Midlands Ltd,Management & Support Services,44097,9092535,Fleet Modification,3180.42
VIA East Midlands Ltd,Management & Support Services,44097,9092536,Fleet Modification,404.16
Leicestershire Fire & Rescue Service (Bacs),Operational Responses,43986,9092492,Vehicle Maintenance Outsourced,787.33
Keltruck Limited,Management & Support Services,44127,9092724,Vehicle Maintenance Outsourced,4375.83
VIA East Midlands Ltd,Management & Support Services,44097,9092417,Fleet Maintenance - Unplanned,17068.21
VIA East Midlands Ltd,Management & Support Services,44097,9092420,Fleet Maintenance - Unplanned,12385.93
Logistics UK,Management & Support Services,44098,9092521,Fleet Maintenance - Unplanned,630.48
Logistics UK,Management & Support Services,44036,9092540,Fleet Maintenance - Unplanned,315.24
Angloco Limited,Management & Support Services,44107,9092588,Fleet Maintenance - Unplanned,4923.08
Logistics UK,Management & Support Services,44126,9092736,Fleet Maintenance - Unplanned,630.49
CERTAS,Operational Responses,44099,9092508,Fuel - Vehicle,6522.75
CERTAS,Operational Responses,44068,9092520,Fuel - Vehicle,805.41
CERTAS,Operational Responses,44105,9092561,Fuel - Vehicle,5638.75
CERTAS,Operational Responses,44105,9092576,Fuel - Vehicle,6554.83
CERTAS,Operational Responses,44103,9092587,Fuel - Vehicle,1041
CERTAS,Operational Responses,44127,9092723,Fuel - Vehicle,7072.72
CERTAS,Operational Responses,44098,9092734,Fuel - Vehicle,6261.84
The Lodge Tyre Co. Limited,Management & Support Services,44104,9092517,Tyres,4549.41
The Lodge Tyre Co. Limited,Management & Support Services,44072,9092523,Tyres,2339.7
Drivercheck Ltd,Management & Support Services,44104,9092449,Motor Tax / Licenses,486
Holmatro Uk Limited,Management & Support Services,44098,9092506,Operational Equipment Purchase,428.3
Apollo Signs & Engraving,Management & Support Services,44112,9092526,Operational Equipment Purchase,392.34
Specialised Canvas Group,Management & Support Services,44113,9092542,Operational Equipment Purchase,17.23
Specialised Canvas Group,Management & Support Services,44113,9092542,Operational Equipment Purchase,40
Radiocoms Systems Ltd,Management & Support Services,44110,9092568,Operational Equipment Purchase,409.5
Radiocoms Systems Ltd,Management & Support Services,44110,9092568,Operational Equipment Purchase,15
Cintec International Limited,Management & Support Services,44109,9092621,Operational Equipment Purchase,130
Cintec International Limited,Management & Support Services,44109,9092621,Operational Equipment Purchase,6951.44
Nottinghamshire Fire Safety Limited,Operational Responses,44113,9092628,Operational Equipment Purchase,250.25
Holmatro Uk Limited,Management & Support Services,44125,9092691,Operational Equipment Purchase,1103.58
Holmatro Uk Limited,Management & Support Services,44125,9092721,Operational Equipment Purchase,624.5
Draeger Safety UK Limited,Management & Support Services,44110,9092586,Breathing Apparatus,33961.4
Flogas Britian Limited,Management & Support Services,44119,9092631,Oxygen and Other Gases,977.68
Ergo Computing UK,Management & Support Services,44120,9092653,Computer Hardware/ Software,6
Ergo Computing UK,Management & Support Services,44120,9092653,Computer Hardware/ Software,1871.4
Concerto Support Services Limited,Management & Support Services,44104,9092453,Computer Software Maintenance Contracts,7145
Bytes Software Services Ltd,Management & Support Services,44104,9092531,Computer Software Maintenance Contracts,224.37
Bt Global Services,Management & Support Services,44119,9092680,Computer Software Maintenance Contracts,1140.1
Risual Limited,Management & Support Services,44112,9092684,Computer Software Maintenance Contracts,3250
Cadline Limited,Management & Support Services,44127,9092731,Computer Software Maintenance Contracts,985
Canford Audio Plc,"Statutory Inspection, Certification & Enforcement",44053,9092527,Computer Consumables,258
Ergo Computing UK,Management & Support Services,44106,9092560,Computer Consumables,533.44
Risual Limited,Management & Support Services,44085,9092509,Non-Contracted Services - ICT,2520
Risual Limited,Management & Support Services,44092,9092510,Non-Contracted Services - ICT,1680
Risual Limited,Management & Support Services,44099,9092511,Non-Contracted Services - ICT,4200
Ricoh Uk Ltd,Management & Support Services,44115,9092735,Photocopier,8508.3
Excelerate Technology Limited,Management & Support Services,44117,9092624,Communication Equipment - Maintenance,16371
Risual Limited,Management & Support Services,44120,9092642,Phones - Landline,1812.56
Northern Diver (International) Ltd,Management & Support Services,44103,9092423,Uniform and Protectice Clothing Repairs,8.5
Northern Diver (International) Ltd,Management & Support Services,44103,9092423,Uniform and Protectice Clothing Repairs,220
Fitness Warehouse Limited t/a Gym Gear,Management & Support Services,44104,9092428,Fitness Equipment,2295
Fire Safe International Limited,Management & Support Services,44082,9092415,Carriage and Packaging,260
Proflight Ltd,Management & Support Services,44109,9092458,Carriage and Packaging,17.23
Northern Diver (International) Ltd,Management & Support Services,44113,9092544,Carriage and Packaging,8.5
Thomas Kneale & Co Ltd,Management & Support Services,44113,9092645,Carriage and Packaging,19.5
Collins Nets Ltd,Management & Support Services,44118,9092657,Carriage and Packaging,8
Lift Components Limited,Management & Support Services,44117,9092674,Carriage and Packaging,15
Nottinghamshire Relate,Management & Support Services,44019,9092571,Medical Fees,50
Amplivox Ltd,Management & Support Services,44103,9092427,Occupational Health Costs,3417
Kays Medical Ltd,Management & Support Services,44111,9092501,Occupational Health Costs,1227.52
Nottinghamshire Relate,Management & Support Services,44019,9092571,Occupational Health Costs,200
Kays Medical Ltd,Management & Support Services,44116,9092589,Occupational Health Costs,79.38
Kays Medical Ltd,Management & Support Services,44116,9092589,Occupational Health Costs,171
Trinity Occupational and Public Health Solutions Ltd,Management & Support Services,44102,9092666,Occupational Health Costs,3000
Controlled Events - RW Consulting Solutions Ltd,Management & Support Services,44057,9092454,Consultancy Fees - Non Estates Related,4745.43
Valuation Office Agency,Management & Support Services,44116,9092575,Consultancy Fees - Non Estates Related,2000
Leicestershire Fire & Rescue Service (Bacs),Operational Responses,43986,9092492,Subsistence,238.14
Nuffield Sailing Centre,Management & Support Services,44106,9092441,Overnight Accomodation,720
Nuffield Sailing Centre,Management & Support Services,44092,9092443,Overnight Accomodation,840
Networking Women In The Fire Service,Management & Support Services,44105,9092618,Subscriptions,500
Fleet ID Limited,Management & Support Services,44110,9092519,Marketing and Publicity,1680.99
Fleet ID Limited,Management & Support Services,44112,9092522,Marketing and Publicity,1680.99
Fleet ID Limited,Management & Support Services,44099,9092552,Marketing and Publicity,1680.99
H-Squared,Management & Support Services,44113,9092546,Course Materials,12.5
Bits At Micks,Operational Responses,44104,9092565,Training/ Teaching Equipment,198
Bits At Micks,Operational Responses,44104,9092565,Training/ Teaching Equipment,198
Bits At Micks,Operational Responses,44104,9092565,Training/ Teaching Equipment,396
Bits At Micks,Operational Responses,44104,9092565,Training/ Teaching Equipment,396
Ruth Lee Limited,Operational Responses,44119,9092636,Training/ Teaching Equipment,716.5
Vision Support Services Ltd,Operational Responses,44103,9092405,Community Safety Delivery Consumables,1076.4
Vision Support Services Ltd,Management & Support Services,44103,9092426,Community Safety Delivery Consumables,302.4
Vision Support Services Ltd,Operational Responses,44103,9092462,Community Safety Delivery Consumables,265.65
Vision Support Services Ltd,Operational Responses,44130,9092719,Community Safety Delivery Consumables,764.7
Vision Support Services Ltd,Operational Responses,44130,9092720,Community Safety Delivery Consumables,254.9
The Community Heartbeat Trust Charity/The Heartbeat Trust (Solutions) Limited,Management & Support Services,44085,9092431,Contribution to Partnership Working,2898
Arthur J Gallagher,Management & Support Services,44018,9092670,Insurance - Brokerage,3000
Thompsons Solicitors,Management & Support Services,44106,9092730,Legal Services,350
Nottinghamshire County Council,Management & Support Services,44070,9092570,Treasury Services,11340
William Sugden & sons Limited,Management & Support Services,44102,9092401,Stock,242.51
William Sugden & sons Limited,Management & Support Services,44102,9092402,Stock,251.91
FireAngel Safety Technology Limited,Management & Support Services,44102,9092404,Stock,5250
Techniclean Supply Limited,Management & Support Services,44075,9092414,Stock,3600
Fire Safe International Limited,Management & Support Services,44082,9092415,Stock,2592
William Sugden & sons Limited,Management & Support Services,44104,9092436,Stock,475.83
Bristol Uniforms Limited,Management & Support Services,44099,9092455,Stock,809.2
Proflight Ltd,Management & Support Services,44109,9092458,Stock,380
Bristol Uniforms Limited,Management & Support Services,44109,9092475,Stock,511.06
Draeger Safety UK Limited,Management & Support Services,44097,9092498,Stock,400
Apollo Signs & Engraving,Management & Support Services,44112,9092528,Stock,660
Kays Medical Ltd,Management & Support Services,44113,9092534,Stock,2990
Specialised Canvas Group,Management & Support Services,44113,9092542,Stock,221
Northern Diver (International) Ltd,Management & Support Services,44113,9092544,Stock,660
H-Squared,Management & Support Services,44113,9092546,Stock,263.36
Joseph Gleave and Son Limited -Joseph Gleave and Son (Holdings) Limited,Management & Support Services,44117,9092626,Stock,644.3
Bristol Uniforms Limited,Management & Support Services,44112,9092644,Stock,1334.01
Thomas Kneale & Co Ltd,Management & Support Services,44113,9092645,Stock,687
Bristol Uniforms Limited,Management & Support Services,44117,9092648,Stock,628.76
Goliath Footwear Ltd,Management & Support Services,44117,9092649,Stock,321.36
Collins Nets Ltd,Management & Support Services,44118,9092657,Stock,350
Lift Components Limited,Management & Support Services,44117,9092674,Stock,196
Techniclean Supply Limited,Management & Support Services,44123,9092677,Stock,12000
Bristol Uniforms Limited,Management & Support Services,44123,9092688,Stock,377.02
S P Services,Management & Support Services,44125,9092710,Stock,4250
Dot Promotional Clothing,Management & Support Services,44124,9092711,Stock,1305
Dot Promotional Clothing,Management & Support Services,44130,9092712,Stock,301.52
Goliath Footwear Ltd,Management & Support Services,44131,9092737,Stock,1045
Goliath Footwear Ltd,Management & Support Services,44131,9092740,Stock,624
Kays Medical Ltd,Management & Support Services,44132,9092743,Stock,280.6
Kays Medical Ltd,Management & Support Services,44132,9092744,Stock,357
S P Services,Management & Support Services,44133,9092749,Stock,12750
Turner and Townsend Project Management,Management & Support Services,44127,9092699,Professional Fees - Architects,5550.39
Turner and Townsend Project Management,Management & Support Services,44127,9092747,Professional Fees - Quantity Surveyor,3169.4
Browne Jacobson LLP,"Statutory Inspection, Certification & Enforcement",44102,9092651,Professional Fees - Legal,4532.5
Freeths LLP,Management & Support Services,44103,9092702,Professional Fees - Legal,418.5
Ergo Computing UK,Management & Support Services,44102,9092569,Hardware,55946.55
TetraLogical Limited,Management & Support Services,44104,9092398,Consultancy and Services,1950
Risual Limited,Management & Support Services,44099,9092425,Consultancy and Services,2550
Risual Limited,Management & Support Services,44078,9092442,Consultancy and Services,2550
Risual Limited,Management & Support Services,44113,9092578,Consultancy and Services,850
Risual Limited,Management & Support Services,44071,9092579,Consultancy and Services,48867
Risual Limited,Management & Support Services,44120,9092641,Consultancy and Services,1680
IT Governance Limited,Management & Support Services,44083,9092659,Consultancy and Services,3600
